[Event "Titled Tuesday Blitz December 13 Late 2022"]
[White "Di Berardino, Diego Rafael"]
[Black "Jimenez Almeida, Luis David"]
[WhiteFideId "2105446"]
[BlackFideId "22242244"]
[WhiteElo "2441"]
[BlackElo "2158"]
[Result "1-0"]
[Round "08"]
[TimeControl "180+1"]
[Date "2022.12.14"]
[WhiteClock "0:00:16"]
[BlackClock "0:00:05"]

1. e4 {[%clk 0:03:00]}  Nf6 {[%clk 0:02:59]} 2. e5 {[%clk 0:03:00]}  Nd5 {[%clk 0:02:59]} 3. d4 {[%clk 0:03:01]}  d6 {[%clk 0:03:00]} 4. exd6 {[%clk 0:03:01]}  exd6 {[%clk 0:03:00]} 5. c4 {[%clk 0:03:02]}  Nb6 {[%clk 0:03:00]} 6. Nc3 {[%clk 0:02:57]}  Be7 {[%clk 0:03:00]} 7. Bd3 {[%clk 0:02:54]}  O-O {[%clk 0:03:00]} 8. Nge2 {[%clk 0:02:54]}  Bg4 {[%clk 0:03:01]} 9. O-O {[%clk 0:02:48]}  Nc6 {[%clk 0:02:59]} 10. Be3 {[%clk 0:02:41]}  Nb4 {[%clk 0:02:42]} 11. b3 {[%clk 0:02:37]}  Nxd3 {[%clk 0:02:41]} 12. Qxd3 {[%clk 0:02:38]}  Qd7 {[%clk 0:02:35]} 13. Ng3 {[%clk 0:02:31]}  d5 {[%clk 0:02:15]} 14. c5 {[%clk 0:02:22]}  Nc8 {[%clk 0:02:14]} 15. f4 {[%clk 0:02:17]}  Bh4 {[%clk 0:01:48]} 16. Nce2 {[%clk 0:01:30]}  Ne7 {[%clk 0:01:35]} 17. h3 {[%clk 0:01:19]}  Bxg3 {[%clk 0:00:51]} 18. Nxg3 {[%clk 0:01:15]}  Bf5 {[%clk 0:00:51]} 19. Nxf5 {[%clk 0:01:11]}  Nxf5 {[%clk 0:00:47]} 20. Bf2 {[%clk 0:01:09]}  Rfe8 {[%clk 0:00:45]} 21. g4 {[%clk 0:01:05]}  Ne7 {[%clk 0:00:44]} 22. Rae1 {[%clk 0:01:03]}  a6 {[%clk 0:00:32]} 23. f5 {[%clk 0:01:00]}  Nc6 {[%clk 0:00:31]} 24. Bg3 {[%clk 0:00:54]}  Re4 {[%clk 0:00:22]} 25. Rxe4 {[%clk 0:00:40]}  dxe4 {[%clk 0:00:23]} 26. Qxe4 {[%clk 0:00:41]}  Nxd4 {[%clk 0:00:23]} 27. Re1 {[%clk 0:00:29]}  h6 {[%clk 0:00:17]} 28. Kg2 {[%clk 0:00:26]}  Rd8 {[%clk 0:00:17]} 29. Rd1 {[%clk 0:00:18]}  b6 {[%clk 0:00:06]} 30. cxb6 {[%clk 0:00:16]}  cxb6 {[%clk 0:00:05]} 31. Bf2 {[%clk 0:00:16]} 1-0


[Site "https://www.chess.com"]

[Event "Titled Tuesday Blitz December 13 Late 2022"]
[White "Dias, Joao Batista"]
[Black "Arbunic Castro, Giovanna"]
[WhiteFideId "2108240"]
[BlackFideId "3400549"]
[WhiteElo "1898"]
[BlackElo "1940"]
[Result "0-1"]
[Round "08"]
[TimeControl "180+1"]
[Date "2022.12.14"]
[WhiteClock "0:01:36"]
[BlackClock "0:01:07"]

1. e4 {[%clk 0:03:00]}  d5 {[%clk 0:02:55]} 2. exd5 {[%clk 0:02:59]}  Qxd5 {[%clk 0:02:55]} 3. Nc3 {[%clk 0:02:59]}  Qa5 {[%clk 0:02:54]} 4. h3 {[%clk 0:02:59]}  Nf6 {[%clk 0:02:53]} 5. Nf3 {[%clk 0:02:59]}  c5 {[%clk 0:02:52]} 6. Bc4 {[%clk 0:02:58]}  Nc6 {[%clk 0:02:51]} 7. O-O {[%clk 0:02:55]}  Bf5 {[%clk 0:02:49]} 8. d3 {[%clk 0:02:54]}  Bg6 {[%clk 0:02:41]} 9. a3 {[%clk 0:02:54]}  Bh5 {[%clk 0:02:39]} 10. g4 {[%clk 0:02:51]}  Nxg4 {[%clk 0:02:38]} 11. hxg4 {[%clk 0:02:50]}  Bxg4 {[%clk 0:02:38]} 12. Kg2 {[%clk 0:02:50]}  Nd4 {[%clk 0:02:37]} 13. Bd2 {[%clk 0:02:35]}  Bxf3+ {[%clk 0:02:33]} 14. Qxf3 {[%clk 0:02:35]}  Nxf3 {[%clk 0:02:32]} 15. Kxf3 {[%clk 0:02:35]}  Qd8 {[%clk 0:02:08]} 16. Rae1 {[%clk 0:02:28]}  e6 {[%clk 0:02:06]} 17. Re4 {[%clk 0:02:26]}  Be7 {[%clk 0:02:01]} 18. Rg1 {[%clk 0:02:25]}  O-O {[%clk 0:01:59]} 19. Bh6 {[%clk 0:02:21]}  Bf6 {[%clk 0:01:57]} 20. Reg4 {[%clk 0:02:19]}  g6 {[%clk 0:01:45]} 21. Bxf8 {[%clk 0:02:13]}  Kxf8 {[%clk 0:01:44]} 22. Ne4 {[%clk 0:02:12]}  Be7 {[%clk 0:01:39]} 23. Rh1 {[%clk 0:02:05]}  f5 {[%clk 0:01:34]} 24. Rf4 {[%clk 0:02:01]}  e5 {[%clk 0:01:32]} 25. Rxh7 {[%clk 0:01:50]}  exf4 {[%clk 0:01:31]} 26. Rh8+ {[%clk 0:01:46]}  Kg7 {[%clk 0:01:31]} 27. Rxd8 {[%clk 0:01:45]}  fxe4+ {[%clk 0:01:29]} 28. Kxe4 {[%clk 0:01:45]}  Rxd8 {[%clk 0:01:28]} 29. Kxf4 {[%clk 0:01:45]}  Rf8+ {[%clk 0:01:26]} 30. Ke3 {[%clk 0:01:43]}  Bf6 {[%clk 0:01:23]} 31. c3 {[%clk 0:01:43]}  a6 {[%clk 0:01:21]} 32. Ke4 {[%clk 0:01:41]}  b5 {[%clk 0:01:19]} 33. Bb3 {[%clk 0:01:39]}  Bg5 {[%clk 0:01:18]} 34. Kd5 {[%clk 0:01:37]}  Rxf2 {[%clk 0:01:16]} 35. Kxc5 {[%clk 0:01:37]}  Rxb2 {[%clk 0:01:14]} 36. Bd5 {[%clk 0:01:36]}  Bd2 {[%clk 0:01:09]} 37. Kb6 {[%clk 0:01:36]}  Bxc3 {[%clk 0:01:07]} 38. Kxa6 {[%clk 0:01:36]} 0-1


[Site "https://www.chess.com"]

[Event "Titled Tuesday Blitz December 13 Late 2022"]
[White "Estrada Nieto, Julian"]
[Black "Vedder, Richard"]
[WhiteFideId "5101018"]
[BlackFideId "1004166"]
[WhiteElo "2195"]
[BlackElo "2168"]
[Result "1/2-1/2"]
[Round "08"]
[TimeControl "180+1"]
[Date "2022.12.14"]
[WhiteClock "0:00:12"]
[BlackClock "0:00:48"]

1. e4 {[%clk 0:03:00]}  e5 {[%clk 0:02:59]} 2. Nf3 {[%clk 0:03:01]}  Nc6 {[%clk 0:02:59]} 3. Bb5 {[%clk 0:03:01]}  a6 {[%clk 0:02:59]} 4. Ba4 {[%clk 0:03:00]}  Nf6 {[%clk 0:02:59]} 5. O-O {[%clk 0:03:00]}  Nxe4 {[%clk 0:02:59]} 6. d4 {[%clk 0:02:59]}  b5 {[%clk 0:02:59]} 7. Bb3 {[%clk 0:03:00]}  d5 {[%clk 0:02:59]} 8. dxe5 {[%clk 0:03:00]}  Be6 {[%clk 0:03:00]} 9. c3 {[%clk 0:02:54]}  Bc5 {[%clk 0:02:59]} 10. Qe2 {[%clk 0:02:50]}  O-O {[%clk 0:02:59]} 11. Be3 {[%clk 0:02:50]}  Bxe3 {[%clk 0:02:52]} 12. Qxe3 {[%clk 0:02:49]}  Qe7 {[%clk 0:02:53]} 13. Nbd2 {[%clk 0:02:47]}  Nxd2 {[%clk 0:02:46]} 14. Nxd2 {[%clk 0:02:34]}  Rad8 {[%clk 0:02:47]} 15. Nf3 {[%clk 0:02:24]}  Na5 {[%clk 0:02:44]} 16. Nd4 {[%clk 0:02:05]}  c5 {[%clk 0:02:35]} 17. Nxe6 {[%clk 0:02:04]}  fxe6 {[%clk 0:02:36]} 18. Rad1 {[%clk 0:01:56]}  Nc6 {[%clk 0:02:22]} 19. f4 {[%clk 0:01:54]}  d4 {[%clk 0:02:20]} 20. Qe4 {[%clk 0:01:44]}  c4 {[%clk 0:01:51]} 21. Qxc6 {[%clk 0:01:43]}  cxb3 {[%clk 0:01:51]} 22. axb3 {[%clk 0:01:42]}  dxc3 {[%clk 0:01:52]} 23. Rxd8 {[%clk 0:01:25]}  Rxd8 {[%clk 0:01:53]} 24. bxc3 {[%clk 0:01:25]}  g6 {[%clk 0:01:45]} 25. b4 {[%clk 0:01:17]}  Qa7+ {[%clk 0:01:39]} 26. Kh1 {[%clk 0:01:08]}  Kf7 {[%clk 0:01:31]} 27. h3 {[%clk 0:01:02]}  Rd2 {[%clk 0:01:29]} 28. f5 {[%clk 0:00:53]}  gxf5 {[%clk 0:01:28]} 29. Qf3 {[%clk 0:00:52]}  Qd7 {[%clk 0:01:21]} 30. Qh5+ {[%clk 0:00:50]}  Kg7 {[%clk 0:01:18]} 31. Qg5+ {[%clk 0:00:50]}  Kf7 {[%clk 0:01:18]} 32. Qf6+ {[%clk 0:00:50]}  Kg8 {[%clk 0:01:18]} 33. Kh2 {[%clk 0:00:48]}  Rd3 {[%clk 0:01:12]} 34. Rf4 {[%clk 0:00:43]}  Rxc3 {[%clk 0:01:04]} 35. Rh4 {[%clk 0:00:36]}  Qf7 {[%clk 0:00:50]} 36. Qd8+ {[%clk 0:00:32]}  Qf8 {[%clk 0:00:50]} 37. Qd7 {[%clk 0:00:29]}  Qf7 {[%clk 0:00:48]} 38. Qd8+ {[%clk 0:00:24]}  Qf8 {[%clk 0:00:48]} 39. Qd7 {[%clk 0:00:18]}  Qf7 {[%clk 0:00:48]} 40. Qd8+ {[%clk 0:00:12]} 1/2-1/2


[Site "https://www.chess.com"]

[Event "Titled Tuesday Blitz December 13 Late 2022"]
[White "Fernandez Garcia, Gumersindo"]
[Black "Oro, Faustino"]
[WhiteFideId "24516740"]
[BlackFideId "20000197"]
[WhiteElo "2140"]
[BlackElo "1984"]
[Result "0-1"]
[Round "08"]
[TimeControl "180+1"]
[Date "2022.12.14"]
[WhiteClock "0:00:27"]
[BlackClock "0:00:08"]

1. d4 {[%clk 0:02:52]}  Nf6 {[%clk 0:02:59]} 2. Nf3 {[%clk 0:02:52]}  e6 {[%clk 0:02:59]} 3. g3 {[%clk 0:02:53]}  d5 {[%clk 0:02:59]} 4. Bg2 {[%clk 0:02:53]}  Be7 {[%clk 0:02:59]} 5. O-O {[%clk 0:02:54]}  O-O {[%clk 0:03:00]} 6. c4 {[%clk 0:02:55]}  dxc4 {[%clk 0:03:00]} 7. Qc2 {[%clk 0:02:55]}  b5 {[%clk 0:02:59]} 8. a4 {[%clk 0:02:51]}  b4 {[%clk 0:02:59]} 9. Nbd2 {[%clk 0:02:48]}  c5 {[%clk 0:02:45]} 10. dxc5 {[%clk 0:02:43]}  Bxc5 {[%clk 0:02:45]} 11. Nxc4 {[%clk 0:02:43]}  Bb7 {[%clk 0:02:34]} 12. Bg5 {[%clk 0:02:41]}  h6 {[%clk 0:02:30]} 13. Bf4 {[%clk 0:02:29]}  Nbd7 {[%clk 0:02:19]} 14. Rfd1 {[%clk 0:02:28]}  Qe7 {[%clk 0:02:17]} 15. b3 {[%clk 0:02:27]}  Bd5 {[%clk 0:02:13]} 16. Nfe5 {[%clk 0:02:17]}  Rac8 {[%clk 0:02:04]} 17. e4 {[%clk 0:02:13]}  Ba8 {[%clk 0:01:37]} 18. Nxd7 {[%clk 0:02:03]}  Nxd7 {[%clk 0:01:38]} 19. Qe2 {[%clk 0:02:03]}  e5 {[%clk 0:01:31]} 20. Be3 {[%clk 0:02:02]}  Bxe3 {[%clk 0:01:30]} 21. Nxe3 {[%clk 0:02:01]}  g6 {[%clk 0:01:22]} 22. Nd5 {[%clk 0:01:50]}  Bxd5 {[%clk 0:01:21]} 23. exd5 {[%clk 0:01:51]}  Qd6 {[%clk 0:01:20]} 24. Qd2 {[%clk 0:01:47]}  Rc3 {[%clk 0:01:10]} 25. Rac1 {[%clk 0:01:35]}  Rfc8 {[%clk 0:01:02]} 26. Qxh6 {[%clk 0:01:34]}  Nc5 {[%clk 0:00:40]} 27. Rxc3 {[%clk 0:01:29]}  bxc3 {[%clk 0:00:41]} 28. Qe3 {[%clk 0:01:08]}  Nxb3 {[%clk 0:00:36]} 29. Be4 {[%clk 0:01:06]}  Nd4 {[%clk 0:00:33]} 30. Rc1 {[%clk 0:01:02]}  Qb4 {[%clk 0:00:32]} 31. Kg2 {[%clk 0:00:57]}  Kg7 {[%clk 0:00:24]} 32. h4 {[%clk 0:00:56]}  Nb3 {[%clk 0:00:20]} 33. Rc2 {[%clk 0:00:52]}  Qxa4 {[%clk 0:00:16]} 34. h5 {[%clk 0:00:51]}  Qb4 {[%clk 0:00:10]} 35. hxg6 {[%clk 0:00:48]}  fxg6 {[%clk 0:00:10]} 36. Qg5 {[%clk 0:00:45]}  Qd6 {[%clk 0:00:10]} 37. Ra2 {[%clk 0:00:42]}  Rc7 {[%clk 0:00:09]} 38. Bc2 {[%clk 0:00:42]}  Nd4 {[%clk 0:00:09]} 39. Bd3 {[%clk 0:00:33]}  Qxd5+ {[%clk 0:00:09]} 40. Kf1 {[%clk 0:00:27]}  Qh1# {[%clk 0:00:08]} 0-1


[Site "https://www.chess.com"]

[Event "Titled Tuesday Blitz December 13 Late 2022"]
[White "Firouzja, Alireza"]
[Black "Nakamura, Hikaru"]
[WhiteFideId "12573981"]
[BlackFideId "2016192"]
[WhiteElo "2904"]
[BlackElo "2909"]
[Result "1/2-1/2"]
[Round "08"]
[TimeControl "180+1"]
[Date "2022.12.13"]
[WhiteClock "0:00:06"]
[BlackClock "0:00:19"]

1. e4 {[%clk 0:03:00]}  e5 {[%clk 0:02:59]} 2. Nf3 {[%clk 0:03:00]}  Nc6 {[%clk 0:03:00]} 3. Bb5 {[%clk 0:03:00]}  Nf6 {[%clk 0:03:00]} 4. O-O {[%clk 0:03:00]}  Nxe4 {[%clk 0:03:00]} 5. Re1 {[%clk 0:03:01]}  Nd6 {[%clk 0:03:01]} 6. Nxe5 {[%clk 0:03:01]}  Be7 {[%clk 0:03:01]} 7. Bf1 {[%clk 0:03:01]}  Nxe5 {[%clk 0:03:01]} 8. Rxe5 {[%clk 0:03:02]}  O-O {[%clk 0:03:02]} 9. d4 {[%clk 0:03:02]}  Bf6 {[%clk 0:02:59]} 10. Re1 {[%clk 0:03:02]}  Re8 {[%clk 0:03:00]} 11. c3 {[%clk 0:03:01]}  Rxe1 {[%clk 0:02:42]} 12. Qxe1 {[%clk 0:03:01]}  b6 {[%clk 0:02:43]} 13. Bf4 {[%clk 0:03:00]}  Ne8 {[%clk 0:02:41]} 14. Nd2 {[%clk 0:02:55]}  Bb7 {[%clk 0:02:38]} 15. Ne4 {[%clk 0:02:46]}  Be7 {[%clk 0:02:37]} 16. Qe3 {[%clk 0:02:38]}  Nf6 {[%clk 0:02:32]} 17. Nxf6+ {[%clk 0:02:32]}  Bxf6 {[%clk 0:02:33]} 18. Re1 {[%clk 0:02:32]}  d6 {[%clk 0:02:30]} 19. Bd3 {[%clk 0:02:19]}  g6 {[%clk 0:02:22]} 20. Be4 {[%clk 0:02:05]}  d5 {[%clk 0:01:59]} 21. Bd3 {[%clk 0:02:00]}  Qd7 {[%clk 0:01:52]} 22. h3 {[%clk 0:01:46]}  Bg7 {[%clk 0:01:48]} 23. h4 {[%clk 0:01:35]}  Bf8 {[%clk 0:01:03]} 24. h5 {[%clk 0:01:33]}  c5 {[%clk 0:01:01]} 25. Bg5 {[%clk 0:01:12]}  Bc6 {[%clk 0:00:58]} 26. Qf4 {[%clk 0:00:42]}  Re8 {[%clk 0:00:54]} 27. Rxe8 {[%clk 0:00:39]}  Qxe8 {[%clk 0:00:55]} 28. hxg6 {[%clk 0:00:28]}  hxg6 {[%clk 0:00:53]} 29. Qc7 {[%clk 0:00:17]}  Qe1+ {[%clk 0:00:19]} 30. Kh2 {[%clk 0:00:17]}  Qd1 {[%clk 0:00:19]} 31. Qxc6 {[%clk 0:00:12]}  Qh5+ {[%clk 0:00:18]} 32. Kg1 {[%clk 0:00:12]}  Qxg5 {[%clk 0:00:19]} 33. Bf1 {[%clk 0:00:06]} 1/2-1/2


[Site "https://www.chess.com"]

[Event "Titled Tuesday Blitz December 13 Late 2022"]
[White "Gerbelli Neto, Eduardo"]
[Black "Banzea, Alexandru-Bogdan"]
[WhiteFideId "2103281"]
[BlackFideId "1232622"]
[WhiteElo "2178"]
[BlackElo "2294"]
[Result "0-1"]
[Round "08"]
[TimeControl "180+1"]
[Date "2022.12.14"]
[WhiteClock "0:00:06"]
[BlackClock "0:00:25"]

1. e4 {[%clk 0:03:00]}  c6 {[%clk 0:02:59]} 2. d4 {[%clk 0:03:00]}  d5 {[%clk 0:03:00]} 3. exd5 {[%clk 0:03:01]}  cxd5 {[%clk 0:03:00]} 4. c4 {[%clk 0:03:02]}  Nf6 {[%clk 0:03:01]} 5. Nc3 {[%clk 0:03:02]}  Nc6 {[%clk 0:03:01]} 6. Nf3 {[%clk 0:03:01]}  a6 {[%clk 0:03:02]} 7. cxd5 {[%clk 0:02:55]}  Nxd5 {[%clk 0:03:02]} 8. Qb3 {[%clk 0:02:55]}  Be6 {[%clk 0:02:48]} 9. Qd1 {[%clk 0:01:12]}  Nxc3 {[%clk 0:02:31]} 10. bxc3 {[%clk 0:01:11]}  Bd5 {[%clk 0:02:32]} 11. Nd2 {[%clk 0:00:53]}  g6 {[%clk 0:02:26]} 12. c4 {[%clk 0:00:47]}  Be6 {[%clk 0:02:01]} 13. d5 {[%clk 0:00:48]}  Bg7 {[%clk 0:02:02]} 14. Rb1 {[%clk 0:00:44]}  Bf5 {[%clk 0:02:03]} 15. dxc6 {[%clk 0:00:42]}  Bxb1 {[%clk 0:01:53]} 16. cxb7 {[%clk 0:00:35]}  Rb8 {[%clk 0:01:48]} 17. Nxb1 {[%clk 0:00:30]}  Qa5+ {[%clk 0:01:49]} 18. Bd2 {[%clk 0:00:24]}  Qe5+ {[%clk 0:01:32]} 19. Be2 {[%clk 0:00:23]}  Rxb7 {[%clk 0:01:30]} 20. Qa4+ {[%clk 0:00:20]}  Kf8 {[%clk 0:01:26]} 21. Qc2 {[%clk 0:00:20]}  Rb2 {[%clk 0:01:22]} 22. Qd3 {[%clk 0:00:20]}  Qd4 {[%clk 0:00:58]} 23. O-O {[%clk 0:00:18]}  Qxd3 {[%clk 0:00:57]} 24. Bxd3 {[%clk 0:00:19]}  f5 {[%clk 0:00:54]} 25. Bc3 {[%clk 0:00:16]}  Rxa2 {[%clk 0:00:54]} 26. Bxg7+ {[%clk 0:00:16]}  Kxg7 {[%clk 0:00:55]} 27. Re1 {[%clk 0:00:15]}  Kf7 {[%clk 0:00:48]} 28. c5 {[%clk 0:00:14]}  Ra5 {[%clk 0:00:31]} 29. c6 {[%clk 0:00:13]}  Rc5 {[%clk 0:00:30]} 30. Bxa6 {[%clk 0:00:13]}  Rxc6 {[%clk 0:00:29]} 31. Bb7 {[%clk 0:00:14]}  Rc5 {[%clk 0:00:27]} 32. Nd2 {[%clk 0:00:12]}  Rb8 {[%clk 0:00:26]} 33. Bf3 {[%clk 0:00:12]}  e5 {[%clk 0:00:26]} 34. g3 {[%clk 0:00:12]}  e4 {[%clk 0:00:26]} 35. Be2 {[%clk 0:00:13]}  Rb2 {[%clk 0:00:27]} 36. Nf1 {[%clk 0:00:09]}  Rcc2 {[%clk 0:00:26]} 37. Bd1 {[%clk 0:00:07]}  Rxf2 {[%clk 0:00:27]} 38. Ne3 {[%clk 0:00:06]}  Rxh2 {[%clk 0:00:25]} 0-1


[Site "https://www.chess.com"]

[Event "Titled Tuesday Blitz December 13 Late 2022"]
[White "Goroshkov, Maksym"]
[Black "Figorito, Nick"]
[WhiteFideId "14142716"]
[BlackFideId "30923689"]
[WhiteElo "2258"]
[BlackElo "2441"]
[Result "1-0"]
[Round "08"]
[TimeControl "180+1"]
[Date "2022.12.14"]
[WhiteClock "0:00:10"]
[BlackClock "0:00:03"]

1. e4 {[%clk 0:02:59]}  e6 {[%clk 0:03:00]} 2. d4 {[%clk 0:02:59]}  d5 {[%clk 0:03:01]} 3. exd5 {[%clk 0:03:00]}  exd5 {[%clk 0:03:02]} 4. c4 {[%clk 0:03:00]}  Nf6 {[%clk 0:03:01]} 5. Nc3 {[%clk 0:03:01]}  Bd6 {[%clk 0:03:01]} 6. Nf3 {[%clk 0:03:00]}  O-O {[%clk 0:03:01]} 7. Be2 {[%clk 0:03:00]}  dxc4 {[%clk 0:03:01]} 8. Bxc4 {[%clk 0:03:00]}  Bg4 {[%clk 0:02:56]} 9. O-O {[%clk 0:02:59]}  Nc6 {[%clk 0:02:52]} 10. Be3 {[%clk 0:02:58]}  Ne7 {[%clk 0:02:36]} 11. Be2 {[%clk 0:02:51]}  c6 {[%clk 0:02:34]} 12. Ne5 {[%clk 0:02:50]}  Bxe2 {[%clk 0:02:34]} 13. Qxe2 {[%clk 0:02:48]}  Ned5 {[%clk 0:02:33]} 14. Bg5 {[%clk 0:02:46]}  Be7 {[%clk 0:02:29]} 15. Rfe1 {[%clk 0:02:35]}  Re8 {[%clk 0:02:28]} 16. Qc4 {[%clk 0:02:31]}  Rf8 {[%clk 0:02:17]} 17. Qb3 {[%clk 0:02:29]}  Nb6 {[%clk 0:02:07]} 18. Rad1 {[%clk 0:02:20]}  Rb8 {[%clk 0:01:56]} 19. Ng4 {[%clk 0:02:00]}  Nbd5 {[%clk 0:01:41]} 20. Nxd5 {[%clk 0:01:56]}  Nxd5 {[%clk 0:01:35]} 21. Bxe7 {[%clk 0:01:52]}  Nxe7 {[%clk 0:01:36]} 22. Qg3 {[%clk 0:01:50]}  Ng6 {[%clk 0:01:33]} 23. Ne5 {[%clk 0:01:46]}  Qd5 {[%clk 0:01:27]} 24. b3 {[%clk 0:01:36]}  Rbe8 {[%clk 0:01:20]} 25. h4 {[%clk 0:01:24]}  Ne7 {[%clk 0:01:01]} 26. Qh3 {[%clk 0:01:17]}  f6 {[%clk 0:00:58]} 27. Nd7 {[%clk 0:01:14]}  Rf7 {[%clk 0:00:55]} 28. Nc5 {[%clk 0:01:13]}  b6 {[%clk 0:00:46]} 29. Ne6 {[%clk 0:01:11]}  Ng6 {[%clk 0:00:40]} 30. h5 {[%clk 0:01:07]}  Nf8 {[%clk 0:00:40]} 31. Nxf8 {[%clk 0:00:57]}  Rfxf8 {[%clk 0:00:41]} 32. h6 {[%clk 0:00:52]}  g6 {[%clk 0:00:37]} 33. Qg3 {[%clk 0:00:42]}  Qd7 {[%clk 0:00:26]} 34. Qf3 {[%clk 0:00:37]}  f5 {[%clk 0:00:25]} 35. d5 {[%clk 0:00:23]}  cxd5 {[%clk 0:00:23]} 36. Rxe8 {[%clk 0:00:19]}  Rxe8 {[%clk 0:00:21]} 37. Rxd5 {[%clk 0:00:20]}  Re1+ {[%clk 0:00:19]} 38. Kh2 {[%clk 0:00:20]}  Qc7+ {[%clk 0:00:19]} 39. g3 {[%clk 0:00:21]}  Re8 {[%clk 0:00:17]} 40. Qd3 {[%clk 0:00:18]}  Re7 {[%clk 0:00:08]} 41. Qd4 {[%clk 0:00:14]}  Qc2 {[%clk 0:00:04]} 42. Rd8+ {[%clk 0:00:09]}  Kf7 {[%clk 0:00:04]} 43. Rd6 {[%clk 0:00:10]}  Qe4 {[%clk 0:00:03]} 44. Qg7+ {[%clk 0:00:09]}  Ke8 {[%clk 0:00:03]} 45. Qg8# {[%clk 0:00:10]} 1-0


[Site "https://www.chess.com"]

[Event "Titled Tuesday Blitz December 13 Late 2022"]
[White "Grigoriants, Sergey"]
[Black "Domingo Nunez, Ruben"]
[WhiteFideId "4130804"]
[BlackFideId "22245570"]
[WhiteElo "2502"]
[BlackElo "2406"]
[Result "0-1"]
[Round "08"]
[TimeControl "180+1"]
[Date "2022.12.13"]
[WhiteClock "0:00:04"]
[BlackClock "0:00:04"]

1. d4 {[%clk 0:03:00]}  Nf6 {[%clk 0:02:56]} 2. c4 {[%clk 0:03:00]}  g6 {[%clk 0:02:57]} 3. f3 {[%clk 0:03:00]}  d6 {[%clk 0:02:55]} 4. e4 {[%clk 0:03:00]}  Nbd7 {[%clk 0:02:56]} 5. Nc3 {[%clk 0:03:00]}  Bg7 {[%clk 0:02:55]} 6. Be3 {[%clk 0:02:57]}  c6 {[%clk 0:02:54]} 7. Nh3 {[%clk 0:02:56]}  h5 {[%clk 0:02:53]} 8. Nf2 {[%clk 0:02:56]}  h4 {[%clk 0:02:54]} 9. Be2 {[%clk 0:02:54]}  a6 {[%clk 0:02:53]} 10. O-O {[%clk 0:02:34]}  b5 {[%clk 0:02:52]} 11. Rc1 {[%clk 0:02:32]}  bxc4 {[%clk 0:02:50]} 12. Bxc4 {[%clk 0:02:32]}  d5 {[%clk 0:02:51]} 13. Bb3 {[%clk 0:02:29]}  Nb6 {[%clk 0:02:45]} 14. e5 {[%clk 0:02:29]}  Nh7 {[%clk 0:02:40]} 15. Na4 {[%clk 0:02:28]}  Bd7 {[%clk 0:02:32]} 16. Nxb6 {[%clk 0:02:25]}  Qxb6 {[%clk 0:02:33]} 17. Nd3 {[%clk 0:02:25]}  h3 {[%clk 0:02:28]} 18. g4 {[%clk 0:02:24]}  O-O {[%clk 0:02:26]} 19. Nc5 {[%clk 0:02:24]}  Bc8 {[%clk 0:02:26]} 20. f4 {[%clk 0:02:12]}  f6 {[%clk 0:02:15]} 21. e6 {[%clk 0:01:58]}  f5 {[%clk 0:02:08]} 22. g5 {[%clk 0:01:59]}  Rd8 {[%clk 0:02:08]} 23. Bf2 {[%clk 0:01:49]}  Nf8 {[%clk 0:02:01]} 24. Re1 {[%clk 0:01:48]}  Rd6 {[%clk 0:02:02]} 25. Rc3 {[%clk 0:01:01]}  Nxe6 {[%clk 0:01:50]} 26. Nxe6 {[%clk 0:00:55]}  Rxe6 {[%clk 0:01:47]} 27. Rxh3 {[%clk 0:00:43]}  Re4 {[%clk 0:01:43]} 28. Rxe4 {[%clk 0:00:35]}  fxe4 {[%clk 0:01:44]} 29. Rc3 {[%clk 0:00:35]}  Bd7 {[%clk 0:01:10]} 30. h4 {[%clk 0:00:35]}  a5 {[%clk 0:01:07]} 31. Qd2 {[%clk 0:00:29]}  a4 {[%clk 0:01:05]} 32. Bd1 {[%clk 0:00:29]}  a3 {[%clk 0:01:02]} 33. Rxa3 {[%clk 0:00:25]}  Rxa3 {[%clk 0:00:52]} 34. bxa3 {[%clk 0:00:26]}  Qb1 {[%clk 0:00:52]} 35. Kg2 {[%clk 0:00:23]}  Bc8 {[%clk 0:00:28]} 36. Be2 {[%clk 0:00:19]}  Bf5 {[%clk 0:00:16]} 37. Be3 {[%clk 0:00:19]}  Bf8 {[%clk 0:00:09]} 38. a4 {[%clk 0:00:19]}  Bc8 {[%clk 0:00:08]} 39. a5 {[%clk 0:00:18]}  Qb7 {[%clk 0:00:09]} 40. h5 {[%clk 0:00:15]}  Qd7 {[%clk 0:00:09]} 41. hxg6 {[%clk 0:00:03]}  Qh3+ {[%clk 0:00:09]} 42. Kf2 {[%clk 0:00:03]}  Qh2+ {[%clk 0:00:09]} 43. Ke1 {[%clk 0:00:03]}  Qh1+ {[%clk 0:00:09]} 44. Bf1 {[%clk 0:00:03]}  Bh3 {[%clk 0:00:09]} 45. Qe2 {[%clk 0:00:03]}  e6 {[%clk 0:00:05]} 46. a6 {[%clk 0:00:01]}  Bb4+ {[%clk 0:00:06]} 47. Bd2 {[%clk 0:00:02]}  Bxd2+ {[%clk 0:00:03]} 48. Kxd2 {[%clk 0:00:01]}  Bxf1 {[%clk 0:00:03]} 49. a7 {[%clk 0:00:01]}  Bxe2 {[%clk 0:00:01]} 50. a8=Q+ {[%clk 0:00:02]}  Kg7 {[%clk 0:00:02]} 51. Qe8 {[%clk 0:00:01]}  e3+ {[%clk 0:00:02]} 52. Kc3 {[%clk 0:00:02]}  Qc1+ {[%clk 0:00:02]} 53. Kb4 {[%clk 0:00:03]}  Qc4+ {[%clk 0:00:02]} 54. Ka3 {[%clk 0:00:03]}  Qc3+ {[%clk 0:00:03]} 55. Ka4 {[%clk 0:00:04]}  Bb5# {[%clk 0:00:04]} 0-1


[Site "https://www.chess.com"]